bitfinex/quotes_ETHUSD_20241223
["timestamp","ask_amount","ask_price","bid_price","bid_amount"]
[1734950077053,2.50431316,3336.7,3335.9,0.8111]
[1734950077353,2.50431316,3336.7,3336.6,2.99706]
[1734950077565,8.12144882,3337.8,3336.6,2.99706]
[1734950077566,2.50431316,3337.4,3336.6,2.99706]
[1734950077791,2.50431316,3337.4,3336.7,0.8111]
[1734950078785,2.50431316,3337.7,3336.7,0.8111]
[1734950078985,5.50038316,3337.7,3336.7,0.8111]
[1734950080029,2.50431316,3337.7,3336.8,0.7924]
[1734950080234,2.50431316,3337.8,3336.9,0.7924]
[1734950080430,2.50431316,3337.8,3337.0,3.02665225]
[1734950080784,2.50431316,3337.8,3337.6,0.7924]
[1734950081180,2.50431316,3338.1,3337.6,0.7924]
[1734950081668,2.50431316,3338.1,3337.6,0.7424]
[1734950082139,2.50431316,3338.6,3337.9,2.99586]
[1734950082653,2.50431316,3338.6,3338.0,0.02995255]
[1734950082860,2.50431316,3339.0,3337.6,2.46864125]
[1734950083183,2.50431316,3339.0,3337.6,5.43481988]
[1734950083393,2.50431316,3339.0,3337.6,3.24613]
[1734950083737,2.99474,3339.2,3338.1,0.60292394]
[1734950084469,2.99474,3339.2,3338.1,3.59862394]
[1734950084672,2.99474,3339.2,3338.2,0.7835]
[1734950084883,2.50431316,3339.6,3338.2,0.7835]
[1734950085201,2.99583,3338.0,3337.8,0.7835]
[1734950085329,0.55,3338.7,3337.8,0.7835]
[1734950085533,3.55,3338.6,3336.9,0.8306]
[1734950085867,2.9959,3337.9,3336.9,0.8306]
[1734950086071,2.99601,3337.8,3336.9,0.8306]
[1734950086299,2.99608,3337.7,3336.9,1.42741967]
[1734950086603,0.7914,3338.1,3336.9,1.42741967]
[1734950086604,2.99591,3337.9,3336.9,1.42741967]
[1734950086887,2.99591,3337.9,3336.9,0.8306]
[1734950087731,0.7914,3338.1,3336.9,0.8306]
[1734950087932,2.99655,3337.2,3336.9,0.8306]
[1734950088132,0.7914,3338.1,3336.9,0.8306]
[1734950088339,2.99679,3337.0,3336.1,0.7973]
[1734950088977,2.99652,3337.3,3336.1,4.40740125]
[1734950089197,2.99663,3337.1,3336.1,1.40990125]
[1734950089954,2.99635,3337.4,3336.3,2.99731]
[1734950090137,2.99635,3337.4,3336.5,0.8159]
[1734950090343,3.0,3337.5,3336.5,0.8159]
[1734950090537,2.99618,3337.6,3336.5,0.8159]
[1734950090788,2.99599,3337.8,3336.7,0.8159]
[1734950091186,3.31121316,3338.1,3337.1,2.99654]
[1734950091389,2.50431316,3338.1,3337.5,0.7643]
[1734950091740,2.99548,3338.4,3337.5,0.7643]
[1734950092172,0.7791,3338.6,3337.5,0.7643]
[1734950092521,2.99546,3338.4,3337.5,0.7643]
[1734950095690,2.99526,3338.6,3337.5,2.99624]
[1734950095888,2.99526,3338.6,3337.6,0.7545]
[1734950096096,3.0,3338.7,3337.6,0.7545]
[1734950096256,2.99538,3338.5,3337.6,0.7545]
[1734950098500,3.0,3338.8,3337.6,0.7545]
[1734950098833,2.99533,3338.6,3337.6,0.7545]
[1734950099235,2.99499,3338.9,3337.6,0.7545]
[1734950099438,2.99535,3338.5,3337.6,0.7545]
[1734950100197,3.0,3338.7,3337.9,0.7971]
[1734950100375,3.0,3339.0,3337.9,0.7971]
[1734950100579,2.995,3338.9,3337.9,0.7971]
[1734950101461,2.50431316,3339.1,3337.4,11.9763]
[1734950101462,2.50431316,3339.1,3338.0,0.84315255]
[1734950101661,5.49893316,3339.4,3338.3,2.99549]
[1734950101867,2.99466,3339.3,3338.4,0.8132]
[1734950102701,2.99428,3339.7,3338.6,0.7771]
[1734950102863,0.8218,3339.8,3338.6,0.7771]
[1734950103462,2.99506,3338.9,3338.1,0.7771]
[1734950103667,2.99499,3339.0,3338.1,0.7771]
[1734950103901,0.7935,3339.6,3338.1,0.7771]
[1734950104104,2.99502,3338.9,3338.1,0.7771]
[1734950104399,0.55,3339.5,3338.1,0.7771]
[1734950104704,2.99507,3338.9,3338.1,0.7771]
[1734950105101,2.99484,3339.1,3338.1,0.7771]
[1734950105288,2.99454,3339.4,3338.1,0.7771]
[1734950105494,3.29781316,3339.6,3338.2,2.99562]
[1734950105701,5.99468,3339.3,3338.3,0.7826]
[1734950105879,2.50431316,3339.7,3338.6,0.7826]
[1734950106081,5.49861316,3339.7,3338.7,0.7826]
[1734950106463,2.50431316,3339.7,3338.6,2.99519]
[1734950106689,2.50431316,3339.7,3338.7,0.7826]
[1734950106907,2.50431316,3339.7,3338.9,0.7826]
[1734950107085,5.49860316,3339.7,3338.9,0.7826]
[1734950107305,2.99429,3339.7,3338.9,0.7826]
[1734950107889,2.99437,3339.6,3338.9,0.7826]
[1734950108326,3.0,3340.0,3338.9,0.7826]
[1734950108529,2.99433,3339.7,3338.9,0.7826]
[1734950108729,0.8212,3340.2,3338.9,0.7826]
[1734950108893,0.8212,3340.2,3339.0,2.99486]
[1734950109076,2.99412,3339.9,3338.9,0.7826]
[1734950109279,2.9942,3339.8,3338.9,0.7826]
[1734950110208,2.99442,3339.6,3338.9,0.7826]
[1734950111411,3.0,3339.7,3338.9,0.7826]
[1734950111579,5.99428,3339.7,3338.9,0.7826]
[1734950111908,2.99428,3339.7,3338.9,0.7826]
[1734950112277,2.99434,3339.7,3338.9,0.7826]
[1734950112574,2.99447,3339.5,3338.9,0.7826]
[1734950112891,2.9943,3339.7,3338.9,0.7826]
[1734950115409,2.99439,3339.6,3338.9,0.7826]
[1734950117724,2.99421,3339.8,3338.9,0.7826]
[1734950117920,3.0,3339.9,3338.9,3.77758]
[1734950118093,3.0,3339.9,3338.9,2.99498]
[1734950118285,3.0,3339.9,3339.0,0.79]
[1734950118516,2.9941,3339.9,3339.0,0.79]
[1734950118711,2.99428,3339.7,3339.0,0.79]
[1734950119427,2.99392,3340.1,3339.0,0.79]
[1734950119648,2.99423,3339.8,3339.0,0.79]
[1734950119797,2.9943,3339.7,3339.0,0.79]
[1734950120147,2.99447,3339.5,3339.0,0.79]
[1734950120310,0.55,3339.9,3339.0,0.79]
[1734950120510,0.55,3339.9,3338.6,0.79]
[1734950120511,2.99517,3338.7,3338.6,0.79]
[1734950121388,0.8233,3339.2,3338.6,0.79]
[1734950121389,2.99501,3338.9,3338.6,0.79]
[1734950122833,2.99509,3338.8,3338.6,0.79]
[1734950123539,2.99495,3339.0,3338.6,0.79]
[1734950124239,2.50431316,3339.2,3338.6,0.79]
[1734950124905,2.50431316,3339.4,3338.6,2.99526]
[1734950125106,2.50431316,3339.4,3338.7,0.7634]
[1734950125502,2.50431316,3339.4,3338.3,8.98]
[1734950125503,2.99535,3338.5,3338.4,0.7634]
[1734950125708,2.99531,3338.6,3338.4,0.7634]
[1734950126346,3.0,3339.1,3338.4,0.7634]
[1734950126845,2.99533,3338.6,3338.4,0.7634]
[1734950127150,2.99534,3338.6,3338.4,0.7634]
[1734950128109,2.99533,3338.6,3338.4,0.7634]
[1734950128764,2.99537,3338.5,3337.7,0.7832]
[1734950129720,0.8082,3338.9,3337.7,0.7832]
[1734950130065,5.49929316,3339.0,3337.8,0.7876]
[1734950130274,2.50431316,3339.0,3338.1,0.7876]
[1734950130449,2.995,3338.9,3338.1,0.7876]
[1734950132277,2.995,3338.9,3338.2,0.04941773]
[1734950132567,5.49899316,3339.3,3338.4,2.99544]
[1734950132568,2.50431316,3339.3,3338.4,2.99544]
[1734950132767,2.50431316,3339.3,3338.4,0.8184]
[1734950132970,2.50431316,3339.3,3338.5,0.05392988]
[1734950133275,2.50431316,3339.3,3338.4,0.8184]
[1734950133570,2.9948,3339.2,3338.4,0.8184]
[1734950133969,2.50431316,3339.5,3338.5,0.05392988]
[1734950134271,2.99512,3338.8,3338.5,0.05392988]
[1734950134568,3.80055,3339.2,3338.4,0.8184]
[1734950134569,2.99504,3338.9,3338.4,0.8184]
[1734950134780,0.8058,3339.2,3338.4,0.8184]
[1734950134915,2.9951,3338.8,3338.5,0.05384332]
[1734950135230,2.9951,3338.8,3338.6,0.05384332]
[1734950135423,2.9951,3338.8,3338.4,0.8184]
[1734950135852,2.99493,3339.0,3338.4,0.8184]
[1734950136163,0.16055383,3338.7,3338.4,0.8184]
[1734950136351,3.15555383,3338.9,3338.4,0.8184]
[1734950136551,3.15555383,3338.9,3338.5,0.05392322]
[1734950136729,3.15555383,3338.9,3338.4,0.8184]
[1734950136935,0.16055383,3338.8,3338.4,0.8184]
[1734950137554,0.16055383,3338.7,3338.4,0.8184]
[1734950138019,0.16055383,3338.7,3338.5,0.05393654]
[1734950138224,0.16055383,3338.7,3338.6,0.7639]
[1734950138424,2.50431316,3339.2,3338.6,0.81782988]
[1734950138658,2.50431316,3339.2,3338.6,0.7639]
[1734950139174,0.16056115,3339.1,3338.7,0.05382335]
[1734950139742,0.16056115,3339.0,3338.7,0.05382335]
[1734950139941,0.16056115,3339.0,3338.6,0.7639]
[1734950140342,0.16056115,3339.0,3338.7,0.05382335]
[1734950140761,0.16056115,3338.9,3338.6,0.7639]
[1734950141269,0.16056115,3338.8,3338.7,0.05382335]
[1734950145210,0.16056115,3338.8,3338.3,0.7834]
[1734950145350,0.16056115,3338.8,3338.7,0.05159843]
[1734950145551,0.16056115,3338.8,3338.3,0.7834]
[1734950145758,0.16056115,3338.8,3338.7,0.05159843]
[1734950146075,0.16056115,3338.8,3338.7,0.05175157]
[1734950146277,0.16056115,3338.8,3338.3,0.7834]
[1734950146584,0.16056115,3338.8,3338.7,0.05175157]
[1734950146793,0.16056115,3338.8,3338.3,0.7834]
[1734950146974,0.16056115,3338.8,3338.7,0.05175157]
[1734950147134,2.50431316,3339.1,3338.1,0.8014]
[1734950147333,2.50431316,3339.1,3338.4,0.8014]
[1734950147570,2.50431316,3339.1,3338.6,0.8014]
[1734950147789,0.16068976,3339.0,3338.6,0.8014]
[1734950147983,0.16068976,3339.0,3338.8,3.79643]
[1734950148292,0.16068976,3339.0,3338.9,0.05156515]
[1734950148471,2.50431316,3339.7,3338.9,0.05156515]
[1734950148638,2.50431316,3339.7,3339.1,0.8014]
[1734950149135,2.50431316,3339.7,3339.2,0.8527721]
[1734950150238,2.50431316,3339.7,3339.3,2.9946]
[1734950150437,2.50431316,3339.7,3339.3,3.04574581]
[1734950151051,2.50431316,3340.2,3339.3,3.04574581]
[1734950151257,5.49814316,3340.2,3339.3,0.05114581]
[1734950151479,2.50431316,3340.2,3339.3,0.05114581]
[1734950151694,0.7762,3339.8,3339.0,0.7716]
[1734950151839,0.7762,3339.8,3339.4,0.05114581]
[1734950152034,0.7762,3339.8,3339.0,0.7716]
[1734950152035,2.99435,3339.7,3339.0,0.7716]
[1734950152235,2.99435,3339.7,3339.5,0.05114581]
[1734950152542,6.27472316,3339.8,3339.0,0.7716]
[1734950153115,2.99437,3339.6,3339.1,0.05114581]
[1734950156715,6.27472316,3339.8,3339.1,0.05114581]
[1734950157873,3.28051316,3339.8,3339.1,0.05114581]
[1734950158206,2.99429,3339.7,3339.1,0.05114581]
[1734950159813,2.99472,3339.2,3339.1,0.05114581]
[1734950160020,3.75612,3339.2,3339.1,0.05114581]
[1734950160318,2.99535,3338.6,3338.3,0.7975]
[1734950160825,0.7614,3339.2,3338.3,0.7975]
[1734950160967,2.99476,3339.2,3338.3,0.7975]
[1734950161171,2.50431316,3339.0,3338.3,0.7975]
[1734950161371,2.50431316,3339.0,3338.4,0.04506621]
[1734950161905,5.49911316,3339.2,3338.4,0.04506621]
[1734950162321,2.9948,3339.2,3338.4,0.04506621]
[1734950162628,2.50431316,3339.3,3338.4,0.04506621]
[1734950162786,5.49895316,3339.3,3338.5,0.8221]
[1734950163216,2.99464,3339.3,3338.6,0.04506621]
[1734950164122,5.49889316,3339.4,3338.6,0.04506621]
[1734950164701,2.50431316,3339.4,3338.6,0.04506621]
[1734950165443,5.49879316,3339.5,3338.6,0.04506621]
[1734950165940,5.49879316,3339.5,3338.6,0.07501314]
[1734950166140,2.50431316,3339.5,3338.6,0.04506621]
[1734950166440,0.8126,3339.3,3338.6,0.04506621]
[1734950166743,2.99491,3339.0,3338.6,0.04506621]
[1734950166943,2.99517,3338.7,3338.6,0.04506621]
[1734950167249,2.9953,3338.6,3338.2,0.8224]
[1734950167449,2.9949,3339.0,3338.2,0.8224]
[1734950167450,5.49921316,3339.0,3338.2,0.8224]
[1734950167743,2.50431316,3339.0,3338.3,0.04498631]
[1734950167948,2.99536,3338.5,3338.2,0.8224]
[1734950168141,2.99535,3338.5,3338.4,0.04498631]
[1734950168947,2.99535,3338.5,3337.9,0.7947]
[1734950170729,3.26641316,3338.6,3337.9,0.7947]
[1734950171233,6.26170316,3338.6,3337.9,0.7947]
[1734950171603,5.49960316,3338.6,3337.9,0.7947]
[1734950171801,5.49960316,3338.6,3338.0,0.04543246]
[1734950172649,2.99537,3338.5,3338.0,0.04543246]
[1734950173504,2.99537,3338.5,3337.9,0.7947]
[1734950174011,2.50431316,3338.7,3337.9,0.7947]
[1734950174207,5.49953316,3338.7,3337.9,0.7947]
[1734950174526,2.50431316,3338.7,3338.3,2.18868988]
[1734950174847,2.50431316,3338.8,3338.6,0.784]
[1734950175211,2.99446,3339.5,3338.7,0.04540582]
[1734950175643,2.99446,3339.5,3338.7,0.64859213]
[1734950176079,2.50431316,3339.6,3338.7,0.04540582]
[1734950176080,2.99462,3339.4,3338.7,0.04540582]
[1734950176483,2.50431316,3339.5,3338.7,0.04540582]
[1734950176644,2.99468,3339.3,3338.7,0.04540582]
[1734950177379,5.49879316,3339.5,3338.7,0.04540582]
[1734950178503,2.99465,3339.3,3338.7,0.04540582]
[1734950179336,2.99478,3339.2,3338.7,0.04540582]
[1734950180571,2.99462,3339.4,3338.7,0.04540582]
[1734950180733,2.50431316,3339.4,3338.7,0.04540582]
[1734950181376,2.50431316,3339.4,3338.8,0.7947]
[1734950181699,2.9944,3339.6,3338.9,0.04499963]
[1734950181975,2.99458,3339.4,3338.9,0.04499963]
[1734950182277,2.99463,3339.4,3338.9,0.04499963]
[1734950182602,2.9949,3339.0,3338.9,0.04499963]
[1734950183325,2.9949,3339.0,3338.5,0.7947]
[1734950183506,2.9949,3339.0,3338.9,0.04499963]
[1734950184001,2.9949,3339.0,3338.5,0.7947]
[1734950184412,2.9949,3339.0,3338.6,0.04499963]
[1734950185576,2.9949,3339.0,3338.5,0.7947]
[1734950186007,2.9949,3339.0,3338.6,0.04499963]
[1734950186412,2.9949,3339.0,3338.5,0.7947]
[1734950186775,2.9949,3339.0,3338.6,0.04499963]
[1734950187491,5.49907316,3339.2,3338.6,0.04499963]
[1734950187691,5.49907316,3339.2,3338.5,0.7947]
[1734950188025,5.49907316,3339.2,3338.8,0.7828]
[1734950188026,2.50431316,3339.2,3338.8,0.7828]
[1734950188231,2.50431316,3339.3,3338.8,0.7828]
[1734950188433,2.50431316,3339.3,3338.9,0.04519936]
[1734950189408,2.99438,3339.6,3338.9,0.04519936]
[1734950189737,2.50431316,3339.9,3339.0,8.98]
[1734950189909,2.50431316,3339.8,3339.5,2.99445]
[1734950190111,2.50431316,3339.8,3339.6,3.77744]
[1734950190298,2.50431316,3339.8,3339.6,0.7831]
[1734950190632,2.50431316,3339.8,3339.7,0.04501293]
[1734950190837,2.99365,3340.4,3339.7,0.04501293]
[1734950191205,2.99365,3340.4,3339.6,0.7831]
[1734950191600,2.99365,3340.4,3339.7,0.04501293]
[1734950191937,2.99365,3340.4,3339.6,0.7831]
[1734950192235,0.8231,3340.3,3339.8,0.04501293]
[1734950192403,2.99419,3339.8,3339.7,0.04452046]
[1734950192602,2.99419,3339.8,3339.2,0.8159]
[1734950193006,2.99419,3339.8,3339.3,0.04452046]
[1734950193445,2.99419,3339.8,3339.2,0.8159]
[1734950193839,5.49835316,3340.0,3339.3,0.04452046]
[1734950194340,5.49835316,3340.0,3339.2,0.8159]
[1734950194503,2.50431316,3340.0,3339.4,0.04452046]
[1734950194708,2.50431316,3340.1,3339.2,3.81062]
[1734950194933,2.50431316,3340.1,3339.5,0.04452046]
[1734950195128,2.50431316,3340.1,3339.2,3.81062]
[1734950195448,2.99393,3340.1,3339.6,0.04452046]
[1734950195618,2.99393,3340.1,3339.2,0.8159]
[1734950195818,2.99393,3340.1,3339.7,0.04452046]
[1734950196011,2.99393,3340.1,3339.2,0.8159]
[1734950196211,0.8231,3340.3,3339.8,0.04452046]
[1734950196212,3.32741316,3340.3,3339.8,0.04452046]
[1734950196416,2.99401,3340.0,3339.2,0.8159]
[1734950196832,2.99401,3340.0,3339.3,0.04452046]
[1734950198118,2.99412,3339.9,3339.3,0.04452046]
[1734950198318,2.99426,3339.8,3339.3,0.04452046]
[1734950198536,2.99403,3340.0,3339.2,0.8159]
[1734950198733,3.32741316,3340.3,3339.4,0.04402789]
[1734950198734,2.9942,3339.8,3339.4,0.04402789]
[1734950198932,3.32741316,3340.3,3339.2,0.8159]
[1734950199168,2.99408,3340.0,3339.5,0.04402789]
[1734950199462,2.99402,3340.0,3339.2,0.8159]
[1734950199638,2.99412,3339.9,3339.2,0.8159]
[1734950199957,2.99412,3339.9,3339.3,0.04402789]
[1734950200726,2.99412,3339.9,3339.2,0.8159]
[1734950200951,2.99412,3339.9,3339.4,0.04402789]
[1734950201159,3.8232,3339.8,3339.0,0.8322]
[1734950201359,3.8232,3339.8,3339.5,0.04402789]
[1734950201360,2.99428,3339.7,3339.5,0.04402789]
[1734950201555,2.99428,3339.7,3339.0,0.8322]
[1734950201722,2.99428,3339.7,3339.6,0.04402789]
[1734950201918,2.99428,3339.7,3339.0,0.8322]
[1734950202129,2.99428,3339.7,3339.6,0.04402789]
[1734950202363,2.99428,3339.7,3339.0,0.8322]
[1734950202527,2.99428,3339.7,3339.6,0.04402789]
[1734950202723,2.99428,3339.7,3339.0,0.8322]
[1734950202923,2.99428,3339.7,3339.6,0.04402789]
[1734950203220,5.99428,3339.7,3339.0,0.8322]
[1734950203418,3.0,3339.6,3339.0,0.8322]
[1734950203659,3.0,3339.6,3339.1,0.04402789]
[1734950207761,3.829,3339.8,3339.1,0.04402789]
[1734950207963,3.0,3339.8,3339.1,0.04402789]
[1734950208264,2.50431316,3339.9,3339.2,0.7994]
[1734950208642,2.50431316,3339.9,3339.3,0.7994]
[1734950208852,5.50431316,3340.2,3339.3,0.84342789]
[1734950209326,2.99399,3340.1,3339.3,0.84342789]
[1734950209530,3.0,3340.0,3339.3,0.84342789]
[1734950209724,5.99409,3340.0,3339.3,0.84342789]
[1734950209926,2.99419,3339.8,3339.3,0.04402789]
[1734950210126,2.99419,3339.8,3339.0,9.7922]
[1734950210361,2.99428,3339.7,3339.4,0.04402789]
[1734950210563,2.99428,3339.7,3339.0,9.7922]
[1734950210769,2.99428,3339.7,3339.5,0.04402789]
[1734950210970,2.99428,3339.7,3339.0,9.7922]
[1734950211133,2.99428,3339.7,3339.6,0.04402789]
[1734950211465,2.99428,3339.7,3339.0,9.7922]
[1734950212067,2.99428,3339.7,3339.1,0.04390145]
[1734950212229,2.50431316,3340.1,3339.1,0.04390145]
[1734950212429,2.50431316,3340.1,3339.2,3.0245831]
[1734950212653,2.50431316,3340.1,3339.4,0.8192]
[1734950212850,2.50431316,3340.1,3339.6,0.8192]
[1734950213286,2.50431316,3340.1,3339.7,0.04391476]
[1734950213563,3.25861316,3340.8,3339.8,0.783]
[1734950213767,3.0,3340.5,3339.8,0.783]
[1734950214688,3.7543,3340.8,3339.8,0.783]
[1734950214885,2.99359,3340.5,3339.8,0.783]
[1734950215085,3.0,3340.6,3339.8,0.783]
[1734950215301,2.99348,3340.6,3339.8,0.783]
[1734950215490,3.0,3340.5,3339.9,0.04391476]
[1734950217623,2.50431316,3340.9,3339.9,0.04391476]
[1734950217624,5.49760316,3340.9,3340.0,0.7783]
[1734950217913,3.0,3340.8,3340.0,0.7783]
[1734950218125,5.99331,3340.8,3340.1,0.04391476]
[1734950218893,2.99341,3340.7,3340.1,0.04391476]
[1734950219114,3.0,3340.6,3340.1,0.04391476]
[1734950219621,2.9937,3340.4,3340.1,0.04391476]
[1734950219984,3.0,3340.5,3339.8,0.8312]
[1734950220516,3.0,3340.5,3339.9,0.04391476]
[1734950220879,2.99359,3340.5,3339.9,0.04391476]
[1734950222029,5.99339,3340.7,3339.8,0.8312]
[1734950222233,2.99391,3340.2,3339.8,0.8312]
[1734950222382,3.0,3340.7,3339.9,0.04391476]
[1734950222383,2.99372,3340.4,3339.9,0.04391476]
[1734950222582,2.99372,3340.4,3339.8,0.8312]
[1734950223080,2.99372,3340.4,3339.9,0.04335587]
[1734950223280,2.99372,3340.4,3339.8,0.8312]
[1734950223591,2.99374,3340.3,3339.9,0.04335587]
[1734950224174,2.99374,3340.3,3339.8,0.8312]
[1734950224728,5.50431316,3340.7,3339.8,0.8312]
[1734950224878,5.50431316,3340.7,3339.8,3.82531]
[1734950225074,5.50431316,3340.7,3339.9,3.03744587]
[1734950225301,5.50431316,3340.7,3339.9,0.04335587]
[1734950226035,3.13875928,3340.8,3340.0,2.99392]
[1734950226036,3.0,3340.8,3340.0,2.99392]
[1734950226190,3.0,3340.8,3340.1,0.7688]
[1734950226515,2.50431316,3341.0,3340.1,0.81212927]
[1734950226717,2.50431316,3341.0,3340.1,3.80602927]
[1734950227121,3.0,3340.9,3340.1,3.80602927]
[1734950227621,3.0,3341.0,3340.1,3.80602927]
[1734950228017,3.0,3341.0,3340.2,0.7983]
[1734950228581,3.0,3341.0,3340.3,0.04332927]
[1734950230431,2.99309,3341.1,3340.3,0.04332927]
[1734950230737,2.50431316,3341.2,3341.1,3.77412]
[1734950231024,3.13875928,3341.3,3341.1,3.77412]
[1734950231025,3.13875928,3341.3,3341.2,2.99293]
[1734950231181,3.13875928,3341.3,3341.2,3.75403]
[1734950231527,1.64233928,3341.3,3341.2,15.77713977]
[1734950232140,1.64233928,3342.7,3341.4,0.7685]
[1734950232318,1.64233928,3342.7,3342.0,0.7657]
[1734950232820,7.56397298,3343.0,3342.1,0.04188642]
[1734950233187,3.79703,3343.0,3342.1,0.04188642]
[1734950234725,3.0,3342.9,3342.1,0.04188642]
[1734950235626,2.99141,3342.9,3342.1,0.04188642]
[1734950236188,0.8057,3343.0,3342.1,0.04188642]
[1734950236423,3.79703,3343.0,3342.1,0.04188642]
[1734950236631,3.0,3342.9,3342.1,0.04188642]
[1734950236795,0.8057,3343.0,3342.1,3.03399642]
[1734950236996,3.8057,3343.0,3342.1,0.04188642]
[1734950237844,0.8057,3343.0,3342.1,0.04188642]
[1734950237995,0.8306,3342.7,3342.1,0.04188642]
[1734950238211,2.99204,3342.2,3341.2,0.7772]
[1734950238714,2.99204,3342.2,3341.3,0.03753235]
[1734950239623,0.758,3342.1,3341.3,0.03753235]
[1734950241515,3.75015,3342.1,3341.2,0.7772]
[1734950241716,3.0,3342.0,3341.2,0.7772]
[1734950242029,0.758,3342.1,3341.2,0.7772]
[1734950242232,3.758,3342.1,3341.3,0.03653235]
[1734950242529,3.75016,3342.1,3341.3,0.03653235]
[1734950242706,0.758,3342.1,3341.3,0.03653235]
[1734950242900,2.99224,3342.0,3341.3,0.03653235]
[1734950243502,0.758,3342.1,3341.3,0.03653235]
[1734950243707,3.0,3341.8,3341.3,0.03653235]
[1734950243903,3.0,3341.8,3341.2,0.7772]
[1734950244128,3.0,3341.8,3341.3,0.03553235]
[1734950244303,3.0,3341.8,3341.2,0.7772]
[1734950244632,2.99231,3341.9,3340.8,0.58601779]
[1734950244633,3.78385,3341.4,3341.3,2.35e-06]
[1734950244938,7.8042267,3341.4,3341.3,6.49e-06]
[1734950245131,0.8156,3340.7,3339.9,0.7694]
[1734950245333,2.99382,3340.3,3339.5,0.7552]
[1734950246837,2.99382,3340.3,3339.6,0.02828012]
[1734950247500,3.80904,3340.7,3339.6,0.02828012]
[1734950247501,0.8156,3340.7,3339.6,0.02828012]
[1734950247695,2.99373,3340.4,3339.6,0.02828012]
[1734950247898,2.99379,3340.3,3339.6,0.02828012]
[1734950248128,0.8156,3340.7,3339.6,0.02828012]
[1734950248129,2.99394,3340.1,3339.6,0.02828012]
[1734950248845,2.99377,3340.3,3339.6,0.02828012]
[1734950248996,2.99384,3340.2,3339.6,0.02828012]
[1734950249200,2.99394,3340.1,3339.6,0.02828012]
[1734950249400,2.99373,3340.4,3339.6,0.02828012]
[1734950249599,2.99349,3340.6,3339.6,0.02828012]
[1734950252906,2.99349,3340.6,3339.7,0.7958]
[1734950253263,2.99349,3340.6,3339.8,0.02891191]
[1734950253553,2.99329,3340.8,3339.8,0.02891191]
[1734950253855,2.99303,3341.1,3339.9,0.82573737]
[1734950254021,2.99313,3341.0,3339.9,0.7958]
[1734950254224,2.99313,3341.0,3340.0,0.02881878]
[1734950255141,0.7629,3341.3,3340.1,0.8028]
[1734950255337,2.9933,3340.8,3340.1,0.8028]
[1734950255519,2.9933,3340.8,3340.2,0.02881878]
[1734950256119,2.99315,3341.0,3340.2,0.02881878]
[1734950256320,2.99315,3341.0,3340.1,0.8028]
[1734950256521,2.99321,3340.9,3340.3,0.02881878]
[1734950256735,2.99321,3340.9,3340.1,0.8028]
[1734950256906,2.99321,3340.9,3340.4,0.02881878]
[1734950257204,0.7629,3341.3,3340.2,0.02993495]
[1734950257402,3.0,3341.8,3340.5,0.02881878]
[1734950257403,2.99277,3341.4,3340.5,0.02881878]
[1734950257607,2.99277,3341.4,3340.4,0.8049]
[1734950257836,0.7536,3341.6,3340.6,0.02951688]
[1734950258056,3.24722749,3341.9,3340.8,0.8038]
[1734950258255,5.48575749,3342.1,3341.1,0.8038]
[1734950258481,2.49362749,3342.1,3341.1,3.79677]
[1734950258645,2.49362749,3342.1,3341.2,0.02951688]
[1734950258975,2.49362749,3342.1,3341.3,0.7689]
[1734950259384,2.99203,3342.3,3341.4,0.02951688]
[1734950262747,3.7785,3342.9,3341.5,0.8151]
[1734950262946,3.7785,3342.9,3341.4,0.02951688]
[1734950262947,3.87666993,3343.2,3341.7,0.8151]
[1734950263771,2.99142,3342.9,3341.9,0.8012]
[1734950264374,2.99152,3342.8,3342.0,0.02951688]
[1734950264604,2.99152,3342.8,3341.9,0.8012]
[1734950264788,2.99152,3342.8,3342.1,0.02951688]
[1734950265081,2.99152,3342.8,3341.9,0.8012]
[1734950265264,2.99152,3342.8,3342.2,0.02951688]
[1734950265471,2.99152,3342.8,3341.9,0.8012]
[1734950265638,2.99152,3342.8,3342.3,0.02951688]
[1734950265980,2.99152,3342.8,3342.4,0.02951688]
[1734950266186,2.99152,3342.8,3341.9,0.8012]
[1734950266386,2.99152,3342.8,3342.5,0.02951688]
[1734950266681,2.99152,3342.8,3341.9,0.8012]
[1734950266985,2.99152,3342.8,3342.0,0.02828699]
[1734950267168,3.55,3343.1,3342.0,0.02828699]
[1734950267365,2.99206,3342.2,3342.0,0.02828699]
[1734950267748,0.7631,3342.4,3341.6,0.7609]
[1734950267946,2.99223,3342.0,3341.6,0.7609]
[1734950268537,2.99242,3341.8,3341.0,0.7609]
[1734950268733,2.99242,3341.8,3341.7,0.02721014]
[1734950268938,2.99242,3341.8,3341.0,0.7609]
[1734950269138,2.99224,3342.0,3341.7,0.02721014]
[1734950269335,2.99224,3342.0,3341.0,0.7609]
[1734950269653,5.99167,3342.7,3341.9,0.7609]
[1734950269961,2.99178,3342.5,3341.9,0.7609]
[1734950270362,2.99178,3342.5,3342.0,0.02721014]
[1734950271018,3.0,3342.7,3342.0,0.02721014]
[1734950271162,3.0,3342.7,3341.0,2.99311]
[1734950271163,2.99213,3342.1,3341.6,0.787]
[1734950271518,2.99198,3342.3,3342.1,0.02721014]
[1734950271659,2.99204,3342.2,3341.6,0.787]
[1734950272059,2.99204,3342.2,3341.7,0.02721014]
[1734950272300,2.99213,3342.1,3341.7,0.02721014]
[1734950272674,0.55,3342.6,3341.7,0.02721014]
[1734950272875,2.99184,3342.5,3341.7,0.02721014]
[1734950273056,3.0,3342.8,3341.6,0.787]
[1734950273260,0.7631,3342.9,3341.9,0.781]
[1734950273261,2.99168,3342.7,3341.9,0.781]
[1734950273594,2.9918,3342.5,3342.0,0.02721014]
[1734950273963,2.99188,3342.4,3342.0,0.02721014]
[1734950274176,2.99159,3342.7,3342.0,0.02721014]
[1734950274375,2.99195,3342.4,3341.9,0.781]
[1734950275079,2.99159,3342.7,3341.9,0.781]
[1734950275311,2.99206,3342.2,3341.9,0.781]
[1734950275802,0.55,3342.8,3341.9,0.781]
[1734950276002,2.99216,3342.1,3341.9,0.781]